bitfinex-derivatives/quotes_ETHF0:USTF0_20250530
["timestamp","ask_amount","ask_price","bid_price","bid_amount"]
[1748578710490,0.6055,2628.1,2627.9,0.76089]
[1748578711293,0.6055,2628.1,2627.8,4.5474]
[1748578711488,0.6055,2628.1,2627.9,0.6698]
[1748578711689,1.36636,2628.1,2628.0,0.76088]
[1748578711885,1.36636,2628.1,2627.9,1.43069]
[1748578712689,0.76088,2628.0,2627.9,1.43069]
[1748578713189,1.36637,2628.1,2627.9,1.43069]
[1748578714393,0.6055,2628.1,2628.0,0.76088]
[1748578714695,0.00570603,2628.2,2628.1,0.76085]
[1748578715095,0.76652603,2628.2,2628.1,1.27]
[1748578715299,0.00570603,2628.2,2628.0,3.777]
[1748578715589,0.76085,2628.1,2628.0,3.777]
[1748578715793,0.76085,2628.1,2628.0,4.53788]
[1748578715988,0.76085,2628.1,2628.0,3.777]
[1748578716187,0.76085,2628.1,2628.0,4.53788]
[1748578716387,0.76085,2628.1,2628.0,3.777]
[1748578716602,0.76097,2627.7,2627.5,3.2078]
[1748578716785,0.76097,2627.7,2627.4,0.6714]
[1748578718302,0.76097,2627.7,2627.4,1.43243]
[1748578719396,0.76097,2627.7,2627.4,0.6714]
[1748578723092,0.95117,2627.7,2627.4,0.6714]
[1748578726396,0.95117,2627.7,2627.4,1.43245]
[1748578726603,0.95117,2627.7,2627.4,0.6714]
[1748578727302,2.22747,2627.7,2627.4,0.6714]
[1748578728098,3.33538209,2627.7,2627.4,0.6714]
[1748578729212,2.22747,2627.7,2627.4,0.6714]
[1748578729415,1.90255,2627.6,2626.8,3.2078]
[1748578729700,0.76117,2627.0,2626.9,0.6106]
[1748578730003,0.7612,2626.9,2626.8,3.2078]
[1748578730899,0.76123,2626.8,2626.7,5.0066]
[1748578731501,0.76123,2626.8,2626.7,6.2818]
[1748578732300,1.256,2627.0,2626.9,0.7612]
[1748578732501,0.7612,2626.9,2626.8,0.76123]
[1748578732702,0.7612,2626.9,2626.7,7.04304]
[1748578733107,0.76123,2626.8,2626.7,7.04304]
[1748578733308,0.76123,2626.8,2626.7,6.2818]
[1748578735219,0.76121,2626.9,2626.7,7.04306]
[1748578735711,0.76123,2626.8,2626.7,7.04306]
[1748578737312,0.76123,2626.8,2626.7,6.2818]
[1748578737514,0.76123,2626.8,2626.7,7.04306]
[1748578737710,0.76123,2626.8,2626.7,6.2818]
[1748578739418,0.76123,2626.8,2626.7,6.2828]
[1748578739607,0.76122,2626.9,2626.7,6.2828]
[1748578739808,0.76122,2626.9,2626.7,7.04403]
[1748578740412,0.76123,2626.8,2626.7,7.04403]
[1748578741009,0.76123,2626.8,2626.7,6.2828]
[1748578742510,0.76123,2626.8,2626.6,0.00570603]
[1748578742511,0.76126,2626.7,2626.6,0.00570603]
[1748578742822,0.7614,2626.2,2626.1,1.8439]
[1748578743211,0.76139,2626.3,2626.1,1.8439]
[1748578743414,0.76139,2626.3,2626.1,2.60532]
[1748578743615,0.00570603,2626.5,2626.2,0.76139]
[1748578743915,0.76137,2626.3,2626.2,1.2984]
[1748578744312,0.76137,2626.3,2626.1,0.6081]
[1748578744313,0.76146,2626.0,2625.9,0.00379797]
[1748578744522,3.96926,2626.0,2625.9,0.00379797]
[1748578744815,3.96926,2626.0,2625.4,0.6081]
[1748578744816,9.31754918,2626.0,2625.4,0.6081]
[1748578745022,0.76166,2625.3,2625.2,3.778]
[1748578745720,0.76165,2625.4,2625.2,4.53969]
[1748578745924,0.76165,2625.4,2625.3,1.2984]
[1748578746308,1.90402,2625.5,2624.8,0.6718]
[1748578746516,1.2172,2625.3,2624.6,1.2181]
[1748578746716,0.76184,2624.7,2624.6,1.2181]
[1748578746913,0.76192,2624.4,2624.3,1.2922]
[1748578747124,0.76195,2624.3,2624.2,3.778]
[1748578747420,1.2172,2624.6,2624.0,3.2078]
[1748578747719,1.2172,2624.6,2624.0,3.96983]
[1748578747925,3.2078,2624.7,2624.1,1.2181]
[1748578748122,1.8319,2624.9,2624.3,3.2078]
[1748578748318,1.8319,2624.9,2624.4,1.2181]
[1748578748516,0.76183,2624.8,2624.4,1.98001]
[1748578748716,0.76184,2624.7,2624.4,1.98001]
[1748578749220,0.76185,2624.7,2624.4,1.2181]
[1748578749414,0.76185,2624.7,2624.4,1.98002]
[1748578749617,0.76181,2624.8,2624.5,0.76188]
[1748578749812,3.2078,2625.0,2624.4,1.2181]
[1748578750023,3.2078,2625.0,2624.6,0.76185]
[1748578750024,0.76179,2624.9,2624.6,0.76185]
[1748578750218,0.76179,2624.9,2624.6,2.08435]
[1748578750824,0.7618,2624.9,2624.7,1.3225]
[1748578751124,0.76181,2624.8,2624.7,1.3225]
[1748578751920,0.76185,2624.7,2624.5,4.418]
[1748578752221,0.76182,2624.8,2624.5,5.17988]
[1748578752718,3.2078,2624.7,2624.3,6.9868]
[1748578752924,5.8174,2624.7,2624.3,3.779]
[1748578753225,0.7619,2624.5,2624.3,4.54094]
[1748578753618,0.7619,2624.5,2624.4,1.3188]
[1748578754221,0.95238,2624.6,2624.4,1.3188]
[1748578754423,0.76189,2624.5,2624.4,1.3188]
[1748578755426,0.76189,2624.5,2624.3,3.779]
[1748578755621,0.76192,2624.4,2624.3,5.0265]
[1748578756827,0.76192,2624.4,2624.3,3.779]
[1748578758526,1.2587,2624.5,2623.9,3.8472]
[1748578758834,0.76204,2624.0,2623.9,3.8472]
[1748578759018,1.3018,2624.3,2623.9,5.1243]
[1748578759427,1.3018,2624.3,2623.9,5.88636]
[1748578759927,0.76202,2624.1,2623.9,5.88636]
[1748578760127,0.76202,2624.1,2623.9,5.88635]
[1748578760428,0.76201,2624.1,2624.0,0.76203]
[1748578760830,0.76201,2624.1,2624.0,2.03913]
[1748578761028,0.762,2624.2,2624.0,2.03913]
[1748578761716,0.76198,2624.2,2624.0,2.03912]
[1748578762327,0.76196,2624.3,2624.1,0.76198]
[1748578762525,0.76195,2624.3,2624.2,1.9661]
[1748578763117,0.76195,2624.3,2624.2,2.72808]
[1748578763315,0.76194,2624.4,2624.2,2.72808]
[1748578763524,0.76194,2624.4,2624.3,1.3085]
[1748578767324,0.76204,2624.0,2623.9,7.6262]
[1748578767717,0.76204,2624.0,2623.9,8.38827]
[1748578768326,1.3202,2624.3,2623.9,8.38827]
[1748578768327,0.76199,2624.2,2624.1,0.76199]
[1748578769329,0.76201,2624.1,2624.0,1.2617]
[1748578770225,0.76204,2624.0,2623.9,7.6262]
[1748578771725,0.76204,2624.0,2623.9,3.2078]
[1748578771931,2.06187893,2624.0,2623.9,3.2078]
[1748578772232,3.33567893,2624.0,2623.9,3.2078]
[1748578772732,0.7621,2623.8,2623.7,1.42052]
[1748578773030,0.76208,2623.9,2623.8,0.76209]
[1748578773333,0.1905,2624.0,2623.8,1.2733]
[1748578773534,1.11028513,2623.9,2623.8,1.2733]
[1748578773832,1.87239914,2623.9,2623.8,1.2733]
[1748578774228,1.87239914,2623.9,2623.8,2.0354]
[1748578774933,1.87239914,2623.9,2623.8,1.2733]
[1748578777833,0.76207,2623.9,2623.8,1.2733]
[1748578778034,1.87587975,2623.9,2623.8,1.2733]
[1748578778239,1.11380975,2623.9,2623.8,0.7621]
[1748578778438,1.11380975,2623.9,2623.8,2.0794]
[1748578779234,1e-08,2623.9,2623.8,7.0794]
[1748578779434,0.1905,2624.0,2623.9,0.76207]
[1748578779730,0.1905,2624.0,2623.7,0.6584]
[1748578779930,0.1905,2624.0,2622.1,3.81284]
[1748578779931,3.3983,2624.0,2623.3,0.6671]
[1748578780131,3.3983,2624.0,2623.3,3.8749]
[1748578780132,1.86621701,2623.9,2623.3,3.8749]
[1748578780329,1.86621701,2623.9,2623.4,1.9251]
[1748578780530,0.76218,2623.5,2623.4,1.9251]
[1748578780734,0.76211,2623.8,2623.4,1.9251]
[1748578781034,0.00571701,2623.9,2623.5,3.78]
[1748578781035,0.76214,2623.7,2623.5,3.78]
[1748578781236,0.76214,2623.7,2623.6,1.2616]
[1748578783436,0.76218,2623.5,2623.4,4.4435]
[1748578784037,0.76218,2623.5,2623.4,0.6635]
[1748578784239,0.76227,2623.2,2623.1,4.4234]
[1748578784640,0.76227,2623.2,2623.1,5.7131]
[1748578788140,0.76227,2623.2,2623.1,6.3234]
[1748578790338,0.76227,2623.2,2623.1,5.0327]
[1748578791548,0.76227,2623.2,2623.1,6.2567]
[1748578791746,0.76226,2623.3,2623.1,6.2567]
[1748578792048,0.76227,2623.2,2623.1,6.2567]
[1748578792257,0.76227,2623.2,2623.1,5.795]
[1748578792648,0.76226,2623.3,2623.1,5.795]
[1748578793146,3.2078,2623.6,2623.1,5.0327]
[1748578793550,0.76227,2623.2,2623.1,5.0327]
[1748578794551,0.76227,2623.2,2623.1,1.2537]
[1748578794744,0.76227,2623.2,2623.1,5.0327]
[1748578794945,4.5483,2623.6,2623.1,5.0327]
[1748578795142,0.76224,2623.4,2623.2,0.76226]
[1748578795341,0.76224,2623.4,2623.1,5.0327]
[1748578795651,0.76223,2623.4,2623.2,0.76227]
[1748578795859,3.2078,2623.6,2623.1,5.0327]
[1748578796046,0.76225,2623.3,2623.1,5.0327]
[1748578796346,0.76225,2623.3,2623.1,5.79499]
[1748578797749,0.76227,2623.2,2623.1,1.2537]
[1748578797947,0.76227,2623.2,2623.1,3.779]
[1748578799846,0.95287,2623.2,2623.1,3.779]
[1748578800342,0.1906,2623.2,2623.0,3.2078]
[1748578800549,0.95289,2623.2,2623.0,3.2078]
[1748578800850,0.1906,2623.2,2623.1,0.7623]
[1748578805554,0.1906,2623.2,2623.1,2.0715]
[1748578809051,3.21351701,2623.9,2623.2,1.90566]
[1748578809251,0.76214,2623.7,2623.5,0.76216]
[1748578809455,1.1102803,2623.6,2623.5,0.76216]
[1748578810057,1.2561,2623.8,2623.6,0.76214]
[1748578810245,2.0182,2623.8,2623.7,3.779]
[1748578810551,3.12834848,2623.8,2623.7,3.779]
[1748578813662,3.1284061,2623.8,2623.7,3.779]
[1748578813854,1.1102061,2623.8,2623.7,4.54113]
[1748578814159,0.19621701,2623.9,2623.8,0.7621]
[1748578814454,0.19621701,2623.9,2623.8,2.0666]
[1748578814653,0.19621701,2623.9,2623.8,2.7065]
[1748578815250,7.01e-06,2623.9,2623.8,7.7065]
[1748578815850,7.01e-06,2623.9,2623.8,11.4855]
[1748578818056,1.2216,2624.8,2624.2,1.90492]
[1748578818249,3.32652,2624.8,2624.6,0.76186]
[1748578818453,3.32652,2624.8,2624.5,0.76188]
[1748578818657,2.5647,2624.8,2624.2,3.2078]
[1748578818850,0.76191,2624.5,2624.3,3.778]
[1748578819055,2.10502,2624.4,2624.3,3.778]
[1748578819257,0.76195,2624.3,2624.2,3.2078]
[1748578819462,0.76201,2624.1,2624.0,3.778]
[1748578820063,0.76201,2624.1,2623.9,1.37866]
[1748578820363,1.314,2624.0,2623.9,1.37867]
[1748578820551,1.314,2624.0,2623.9,5.15667]
[1748578821361,1.314,2624.0,2623.9,4.3946]
[1748578822061,1.314,2624.0,2623.9,5.15667]
[1748578822962,0.1905,2624.1,2624.0,0.76204]
[1748578823567,0.76204,2624.0,2623.9,0.6166]
[1748578823766,2.23602,2624.1,2623.9,4.3946]
[1748578823959,2.23602,2624.1,2624.0,3.778]
[1748578824265,1.474,2624.1,2624.0,3.778]
[1748578825264,2.23601,2624.1,2624.0,3.778]
[1748578826372,0.76204,2624.0,2623.8,3.2078]
[1748578826567,2.09294,2624.0,2623.9,3.778]
[1748578827160,0.76207,2623.9,2623.8,3.2078]
[1748578827365,2.73597,2623.9,2623.8,6.9858]
[1748578829074,2.73597,2623.9,2623.8,3.2078]
[1748578829266,2.73597,2623.9,2623.8,6.9858]
[1748578830464,2.73597,2623.9,2623.8,3.2078]
[1748578830966,2.73597,2623.9,2623.8,6.9858]
[1748578832057,2.73597,2623.9,2623.8,3.2078]
[1748578835862,3.84410063,2623.9,2623.8,3.2078]
[1748578838868,3.84514066,2623.9,2623.8,3.2078]
[1748578839969,2.73597,2623.9,2623.8,3.2078]
[1748578841165,0.76213,2623.7,2623.6,3.78371701]
[1748578841673,1.87130471,2623.7,2623.6,3.78371701]
[1748578841976,2.52550471,2623.7,2623.6,0.00571701]
[1748578842275,0.76224,2623.3,2623.2,4.4015]
[1748578842994,0.76227,2623.2,2623.1,3.21819395]
[1748578843183,2.06237,2623.2,2623.1,3.21819395]
[1748578843793,0.76227,2623.2,2623.1,3.21819395]
[1748578843988,3.2078,2623.6,2623.2,0.76227]
[1748578843989,4.5372,2623.6,2623.2,0.76227]
[1748578844192,0.76221,2623.4,2623.3,1.3432]
[1748578844600,0.6542,2623.7,2623.2,0.6235]
[1748578844816,0.76223,2623.4,2623.2,4.4015]
[1748578844998,0.6172,2623.6,2623.2,4.4015]
[1748578845190,0.6172,2623.6,2623.3,1.3432]
[1748578845498,0.76221,2623.4,2623.3,1.3432]
[1748578845900,0.6172,2623.6,2623.2,4.4015]
[1748578845901,0.76224,2623.3,2623.2,0.6235]
[1748578846102,0.76224,2623.3,2623.2,4.4015]
[1748578847998,0.76224,2623.3,2623.2,5.7052]
[1748578854110,1.3107,2623.5,2623.1,0.01039395]
[1748578854111,0.76227,2623.2,2623.1,0.01039395]
[1748578854310,1.38897,2623.2,2623.1,0.01039395]
[1748578854710,0.76227,2623.2,2623.1,0.01039395]
[1748578854917,0.76226,2623.3,2623.1,3.78839395]
[1748578855103,0.76226,2623.3,2623.2,1.2908]
[1748578855301,0.76227,2623.2,2623.1,3.78839395]
[1748578856013,0.76227,2623.2,2623.1,6.99619395]
[1748578856211,0.76226,2623.3,2623.1,8.30649395]
[1748578856411,0.76226,2623.3,2623.2,1.3103]
[1748578856912,0.76227,2623.2,2623.1,3.21819395]
[1748578857119,0.76227,2623.2,2623.1,4.52849395]
[1748578857410,0.6267,2623.5,2623.1,4.52849395]
[1748578857612,1.2319,2623.6,2623.2,1.3103]
[1748578857812,0.76217,2623.6,2623.4,0.7622]
[1748578858011,0.76217,2623.6,2623.5,1.3103]
[1748578858515,1.87170516,2623.6,2623.5,1.3103]
[1748578859611,1.87176239,2623.6,2623.5,1.3103]
[1748578861011,1.87176239,2623.6,2623.5,1.9467]
[1748578861313,0.1905,2623.8,2623.7,0.76213]
[1748578861507,0.1905,2623.8,2623.7,3.96993]
[1748578861900,0.1905,2623.8,2623.7,3.867]
[1748578862103,0.9526,2623.8,2623.7,3.867]
[1748578862309,0.9526,2623.8,2623.7,8.9431]
[1748578862611,0.1905,2623.8,2623.7,5.1651]
[1748578862809,0.9526,2623.8,2623.7,8.9431]
[1748578864394,0.1905,2623.8,2623.7,8.9431]
[1748578865090,0.1905,2623.8,2623.7,9.70523]
[1748578865292,0.9526,2623.8,2623.7,8.9431]
[1748578865590,0.1905,2623.8,2623.7,9.70523]
[1748578868693,0.9526,2623.8,2623.7,8.9431]
[1748578868881,0.1905,2623.8,2623.7,9.70523]
[1748578873591,0.9526,2623.8,2623.7,9.70523]
[1748578873791,0.1905,2623.8,2623.7,9.70523]
[1748578876394,0.9526,2623.8,2623.7,8.9431]
[1748578876596,0.76216,2623.6,2623.5,3.777]
[1748578877093,1.8834,2623.7,2623.5,3.777]
[1748578877299,0.7621,2623.8,2623.5,5.105]
[1748578877497,1.43329,2623.9,2623.7,0.76213]
[1748578877801,0.7621,2623.8,2623.7,3.96993]
[1748578878094,1.2549,2624.0,2623.9,0.76207]
[1748578878301,2.01694,2624.0,2623.9,0.76207]
[1748578878697,2.20744,2624.0,2623.9,0.76207]
[1748578878899,1.4454,2624.0,2623.9,0.76207]
[1748578879099,2.20744,2624.0,2623.8,0.76208]
[1748578879602,0.1905,2624.0,2623.9,4.53907]
[1748578880105,0.95254,2624.0,2623.9,3.777]
[1748578880302,2.27854,2624.0,2623.9,3.777]
[1748578880802,1.5165,2624.0,2623.9,4.53907]
[1748578880989,1.5165,2624.0,2623.9,3.777]
[1748578881404,1.5165,2624.0,2623.9,4.53907]
[1748578882001,2.27854,2624.0,2623.9,3.777]
[1748578882203,2.27854,2624.0,2623.9,4.53907]
[1748578882403,1.5165,2624.0,2623.9,4.53907]
[1748578882999,2.27854,2624.0,2623.9,3.777]
[1748578885303,2.27854,2624.0,2623.9,4.53907]
[1748578885506,2.27854,2624.0,2623.9,3.777]
[1748578885807,3.38946958,2624.0,2623.9,3.777]
[1748578886501,3.38115646,2624.0,2623.9,3.777]
[1748578886906,2.61911646,2624.0,2623.9,4.53907]
[1748578887802,2.61980475,2624.0,2623.9,4.53907]
[1748578892108,2.63747357,2624.0,2623.9,4.53907]
[1748578893003,3.2078,2624.6,2624.5,0.7619]
[1748578893209,4.33747619,2624.6,2624.5,0.7619]
[1748578893905,1.12967619,2624.6,2624.5,0.7619]
[1748578894114,0.00571701,2624.7,2624.6,0.76187]
[1748578894302,1.13513408,2624.7,2624.6,3.96967]
[1748578894501,0.00571701,2624.7,2624.6,3.96967]
[1748578901414,0.00571701,2624.7,2624.6,7.74467]
[1748578901724,0.00571701,2624.7,2624.6,4.53687]
[1748578902217,0.00571701,2624.7,2624.4,0.6629]
[1748578902519,0.7619,2624.5,2624.4,3.775]
[1748578903120,1.378,2624.5,2624.4,3.775]
[1748578903818,1.378,2624.5,2624.4,4.53692]
[1748578904319,1.378,2624.5,2624.4,3.775]
[1748578904620,1.378,2624.5,2624.4,4.53692]
[1748578904820,1.378,2624.5,2624.4,3.775]
[1748578905119,0.76192,2624.4,2624.3,3.97546701]
[1748578905320,1.2275,2624.4,2624.3,3.97546701]
[1748578905811,1.2275,2624.4,2624.3,0.76766701]
[1748578906418,1.98942,2624.4,2624.3,0.00571701]
[1748578908513,1.98942,2624.4,2624.3,0.76766701]
[1748578908514,1.2275,2624.4,2624.3,0.76766701]
[1748578908715,0.76192,2624.4,2624.3,0.76766701]
[1748578908909,1.2646,2624.6,2624.3,0.00571701]
[1748578909117,0.76757701,2624.7,2624.5,0.7619]
[1748578909326,1.12755665,2624.6,2624.5,0.7619]
[1748578909716,1.12755665,2624.6,2624.5,4.5369]
[1748578910416,0.76757701,2624.7,2624.6,0.76187]
[1748578910621,1.13346041,2624.7,2624.6,0.76187]
[1748578911121,0.00571701,2624.7,2624.6,0.76187]
[1748578911315,0.00571701,2624.7,2624.6,2.07057]
[1748578914323,0.00571701,2624.7,2624.6,5.27837]
[1748578917919,0.00571701,2624.7,2624.6,3.2078]
[1748578918126,1.34141701,2624.7,2624.6,0.76187]
[1748578920321,0.7619,2624.5,2624.3,3.97544701]
[1748578920519,2.03452,2624.4,2624.3,3.21351701]
[1748578920715,3.1632137,2624.4,2624.3,3.21351701]
[1748578921027,1.2726,2624.4,2624.3,3.97546701]
[1748578922322,0.1905,2624.4,2624.3,3.97546701]
[1748578922723,0.1905,2624.4,2624.3,5.27906701]
[1748578924232,0.00571701,2624.7,2624.6,0.76187]
[1748578924424,0.00571701,2624.7,2624.6,3.96967]
[1748578924928,0.00571701,2624.7,2624.6,5.30377]
[1748578929125,0.00571701,2624.7,2624.6,5.93047]
[1748578930830,0.1904,2624.8,2624.7,0.76184]
[1748578931028,0.1904,2624.8,2624.7,5.77684]
[1748578934328,1.4155,2625.6,2624.9,0.76178]
[1748578934526,1.12905699,2625.5,2625.1,3.2078]
[1748578934736,3.3642,2625.6,2625.4,0.76162]
[1748578935038,2.41103497,2625.5,2625.4,0.76162]
[1748578935733,1.12873497,2625.5,2625.4,3.96942]
[1748578935932,0.00571701,2625.7,2625.6,0.76158]
[1748578936323,1.13432443,2625.7,2625.6,0.76158]
[1748578936531,1.13432443,2625.7,2625.4,3.2078]
[1748578936833,2.61669,2625.6,2625.4,3.96942]
[1748578937037,1.2402,2625.5,2625.4,3.96942]
[1748578940234,0.00571701,2625.7,2625.4,3.2078]
[1748578940543,0.00571701,2625.7,2625.6,0.76158]
[1748578941141,0.76726701,2625.7,2625.5,0.76159]
[1748578942042,0.00571701,2625.7,2625.6,4.53358]
[1748578943038,1.30091701,2625.7,2625.6,4.53358]
[1748578946037,2.06246701,2625.7,2625.6,4.53358]
[1748578946946,1.30091701,2625.7,2625.6,4.53358]
[1748578947940,2.06246701,2625.7,2625.6,4.53358]
[1748578948243,1.30091701,2625.7,2625.6,4.53358]
[1748578950846,2.06246701,2625.7,2625.6,4.53358]
[1748578952249,0.76163,2625.4,2625.3,3.769]
[1748578952745,0.76171,2625.2,2625.1,0.76172]
[1748578952945,2.04458,2625.3,2625.1,0.76172]
[1748578953246,1.2829,2625.2,2625.1,0.76172]
[1748578957145,0.76165,2625.4,2625.1,0.76172]
[1748578957343,2.00645,2625.4,2625.1,0.76172]
[1748578957641,0.76167,2625.3,2625.1,0.76172]
[1748578957849,2.00647,2625.3,2625.1,0.76172]
[1748578958044,2.00647,2625.3,2625.2,0.76169]
[1748578958245,1.2448,2625.3,2625.2,0.76169]
[1748578960343,2.37465271,2625.3,2625.2,0.76169]
[1748578962646,3.13643326,2625.3,2625.1,0.76171]
[1748578962847,2.00648,2625.3,2625.2,0.76169]
[1748578963051,3.13642755,2625.3,2625.2,0.76169]
[1748578963445,2.37474755,2625.3,2625.2,0.76169]
[1748578966055,1.12994755,2625.3,2625.2,0.76169]
[1748578966954,0.00571701,2625.7,2625.6,0.76158]
[1748578967156,0.00571701,2625.7,2625.6,7.73838]
[1748578967363,1.13589336,2625.7,2625.6,7.73838]
[1748578967548,0.00571701,2625.7,2625.6,7.73838]
[1748578975355,0.00571701,2625.7,2625.6,7.73438]
[1748578976359,0.76726701,2625.7,2625.6,6.9728]
[1748578976863,0.00571701,2625.7,2625.6,6.9728]
[1748578977067,1.29041701,2625.7,2625.6,7.73438]
[1748578978461,0.00571701,2625.7,2625.6,7.73438]
[1748578981259,0.00571701,2625.7,2625.6,3.2078]
[1748578981557,6.75238108,2625.7,2624.9,3.2078]
[1748578981764,3.96943,2625.5,2625.2,0.76167]
[1748578982066,1.2213,2625.4,2625.3,0.76166]
[1748578982456,1.2213,2625.4,2625.0,1.9652]
[1748578982655,0.6456,2625.3,2625.2,0.76169]
[1748578983261,1.2213,2625.4,2625.3,0.76166]
[1748578983461,1.8669,2625.4,2625.3,0.76166]
[1748578985560,0.00571701,2625.7,2625.6,0.76158]
[1748578985765,0.00571701,2625.7,2625.6,4.52758]
[1748578986956,0.67351701,2625.7,2625.6,4.52758]
[1748578987362,1.98981701,2625.7,2625.6,4.52758]
[1748578988965,1.32201701,2625.7,2625.6,4.52758]
[1748578990171,1.32201701,2625.7,2625.5,4.4666]
[1748578990368,1.32201701,2625.7,2625.6,4.52658]
[1748578992871,1.32201701,2625.7,2625.6,3.765]
[1748578993069,1.32201701,2625.7,2625.6,4.52658]
[1748578993766,1.32201701,2625.7,2625.6,3.765]
[1748578993969,1.32201701,2625.7,2625.6,4.52658]
[1748578994171,1.32201701,2625.7,2625.6,3.765]
[1748578994575,1.32201701,2625.7,2625.6,4.52658]
[1748578996172,2.08356701,2625.7,2625.6,3.765]
[1748578996568,2.08356701,2625.7,2625.5,3.2078]
[1748578996771,1.99148,2625.6,2625.5,3.2078]
[1748578997068,1.2299,2625.6,2625.5,3.96941]
[1748578998668,1.99148,2625.6,2625.5,3.96941]
[1748578999775,0.00571701,2625.7,2625.6,0.76158]
[1748578999975,1.13229447,2625.7,2625.6,1.41378]
[1748579001176,1.13229447,2625.7,2625.6,2.70188]
[1748579001372,0.00571701,2625.7,2625.6,3.36778]
[1748579005372,0.76726701,2625.7,2625.6,2.6062]
[1748579005877,0.00571701,2625.7,2625.6,3.36778]
[1748579014183,0.00571701,2625.7,2625.6,2.07968]
[1748579015878,0.00571701,2625.7,2625.6,3.30708]
[1748579023779,3.2078,2626.4,2626.1,0.76142]
[1748579023974,3.04953737,2626.3,2625.8,6.9698]
[1748579024180,2.39943737,2626.2,2625.9,0.76148]
[1748579024376,3.16089737,2626.1,2625.9,0.76148]
[1748579024573,3.16093251,2626.0,2625.8,7.7313]
[1748579024780,2.39945251,2625.9,2625.8,7.7313]
[1748579024979,3.05395251,2625.9,2625.8,7.7313]
[1748579027778,3.81544251,2625.9,2625.8,7.7313]
[1748579028083,3.05395251,2625.9,2625.8,7.7313]
[1748579028481,3.81544251,2625.9,2625.8,7.7313]
[1748579028980,3.05415127,2625.9,2625.8,7.7313]
[1748579029484,1.12735127,2625.9,2625.8,7.7313]
[1748579029878,0.00571701,2626.2,2626.1,0.76143]
[1748579030085,1.13341212,2626.2,2626.1,3.96923]
[1748579031689,1.13341212,2626.2,2626.1,5.26693]
[1748579031887,1.13341212,2626.2,2626.1,5.91613]
[1748579032089,0.00571701,2626.2,2626.1,5.91613]
[1748579035695,0.00571701,2626.2,2626.1,8.37643]
[1748579037590,0.00571701,2626.2,2625.8,3.96932]
[1748579037591,0.76148,2626.0,2625.8,3.96932]
[1748579037794,0.6589,2625.9,2625.8,3.96932]
[1748579037998,1.8908,2625.9,2625.8,0.76152]
[1748579040802,1.8908,2625.9,2625.7,4.51953]
[1748579041389,2.65229,2625.9,2625.7,4.51953]
[1748579042197,2.65229,2625.9,2625.8,0.76152]
[1748579042498,2.65229,2625.9,2625.7,4.51953]
[1748579042698,1.8908,2625.9,2625.8,0.76152]
[1748579042901,2.6523,2625.9,2625.7,0.76153]
[1748579043197,2.6523,2625.9,2625.8,3.758]
[1748579043399,1.8908,2625.9,2625.7,0.76153]
[1748579043593,0.76152,2625.8,2625.7,0.76153]
[1748579043789,0.76155,2625.7,2625.6,3.76371701]
[1748579044202,1.41315,2625.7,2625.6,3.76371701]
[1748579050104,1.41315,2625.7,2625.6,0.76729701]
[1748579051602,1.41315,2625.7,2625.6,0.00571701]
[1748579053698,1.41315,2625.7,2625.6,0.76729701]
[1748579053898,0.76155,2625.7,2625.6,0.76729701]
[1748579054608,0.76152,2625.8,2625.7,0.76155]
[1748579054808,0.76152,2625.8,2625.7,1.98695]
[1748579055506,0.95182,2625.8,2625.7,1.98695]
[1748579056307,0.76155,2625.7,2625.6,0.00571701]
[1748579056512,1.99575,2625.7,2625.6,0.00571701]
[1748579058015,0.1903,2625.8,2625.6,0.76727701]
[1748579058208,0.76155,2625.7,2625.6,1.99137701]
[1748579058410,0.95184,2625.8,2625.7,0.76155]
[1748579059414,0.76155,2625.7,2625.6,1.99137701]
[1748579060608,0.76155,2625.7,2625.6,1.22981701]
[1748579061405,6.12445575,2625.7,2624.9,3.2078]
[1748579061603,0.76175,2625.0,2624.9,3.2078]
[1748579062514,1.88752956,2625.0,2624.9,3.2078]
[1748579062710,1.88707128,2625.0,2624.9,3.2078]
[1748579062917,0.76181,2624.8,2624.7,4.38911701]
[1748579065811,3.2078,2625.2,2624.7,4.38911701]
[1748579066012,1.12476258,2625.1,2624.8,1.2609]
[1748579066215,1.12476258,2625.0,2624.8,2.02271]
[1748579066518,0.76176,2625.0,2624.8,2.02271]
[1748579066711,0.76176,2625.0,2624.9,0.6177]
[1748579066912,0.76176,2625.0,2624.9,1.9051]
[1748579067412,3.2078,2625.5,2624.9,5.1129]
[1748579067615,1.12527246,2625.4,2624.9,5.1129]
[1748579067914,0.76161,2625.5,2625.2,3.96948]
[1748579068117,0.1903,2625.8,2625.3,2.67886]
[1748579068317,1.12546076,2625.7,2625.3,1.9172]
[1748579068512,0.76161,2625.5,2625.3,1.9172]
[1748579068714,0.76159,2625.6,2625.3,2.67886]
[1748579068915,1.12542057,2625.5,2625.3,2.67886]
[1748579069218,0.76159,2625.6,2625.3,2.67886]
[1748579069615,0.76161,2625.5,2625.3,2.67886]
[1748579070016,0.76158,2625.6,2625.3,2.67886]
[1748579070717,0.76158,2625.7,2625.4,0.76163]
[1748579070917,1.12566989,2625.6,2625.5,1.2692]
[1748579071118,1.88724989,2625.6,2625.5,1.2692]
[1748579071514,0.76163,2625.4,2625.3,0.6298]
[1748579072019,1.88741777,2625.4,2625.3,0.6298]
[1748579072230,0.76163,2625.4,2625.3,0.6298]
[1748579072522,1.12578679,2625.4,2625.3,1.39146]
[1748579073624,1.12611666,2625.4,2625.3,1.39146]
[1748579074018,1.31651666,2625.4,2625.3,2.64536]
[1748579076226,0.1904,2625.4,2625.3,2.64536]
[1748579083933,0.17652475,2625.4,2625.3,2.64536]
[1748579084142,0.17652475,2625.4,2625.3,7.64536]